fUSD/lending_fUSD_20260528
["ID","MTS","AMOUNT","RATE_DAILY","PERIOD"]
[423238435,1779972632000,-188899.17434556,0.000149,2]
[423238438,1779972632000,-17092.10531056,0.000149,2]
[423238397,1779972632000,-841.78,0.00014713,2]
[423238439,1779972632000,-14533.68578944,0.000149,2]
[423238442,1779972632000,-2886.63085141,0.000149,2]
[423238420,1779972632000,-1245.12646025,0.00014867,2]
[423238437,1779972632000,-11754.11005444,0.000149,2]
[423238414,1779972632000,-1245.12646025,0.00014833,2]
[423238400,1779972632000,-2000.0,0.000148,2]
[423238399,1779972632000,-6693.1284,0.000148,2]
[423238401,1779972632000,-3773.4138,0.000148,2]
[423238398,1779972632000,-183.8583608,0.000148,2]
[423238390,1779972632000,-367.45425989,0.000146,2]
[423238391,1779972632000,-2100.0,0.000146,5]
[423238392,1779972632000,-25000.0,0.00014601,3]
[423238393,1779972632000,-2800.0,0.000147,5]
[423238395,1779972632000,-162.44917431,0.000147,2]
[423238402,1779972632000,-2500.0,0.000148,2]
[423238416,1779972632000,-1245.12646025,0.00014844,2]
[423238408,1779972632000,-3500.0,0.000148,5]
[423238422,1779972632000,-1245.12646025,0.00014878,2]
[423238410,1779972632000,-1245.12646025,0.00014811,2]
[423238418,1779972632000,-1245.12646025,0.00014856,2]
[423238406,1779972632000,-3499.44752019,0.000148,2]
[423238447,1779972638000,-642.84419098,0.000149,2]
[423238449,1779972638000,-479.47504239,0.000149,5]
[423238446,1779972638000,-338.71580902,0.00013919,2]
[423238448,1779972638000,-1470.52495761,0.000149,2]
[423238516,1779972641000,-500.0,0.00014999,2]
[423238512,1779972641000,-500.0,0.00014999,2]
[423238508,1779972641000,-500.0,0.00014999,2]
[423238513,1779972641000,-500.0,0.00014999,2]
[423238507,1779972641000,-500.0,0.00014999,2]
[423238509,1779972641000,-500.0,0.00014999,2]
[423238504,1779972641000,-500.0,0.00014999,2]
[423238506,1779972641000,-500.0,0.00014999,2]
[423238514,1779972641000,-500.0,0.00014999,2]
[423238511,1779972641000,-500.0,0.00014999,2]
[423238510,1779972641000,-500.0,0.00014999,2]
[423238505,1779972641000,-500.0,0.00014999,2]
[423238495,1779972641000,-453.8558561,0.00014999,2]
[423238500,1779972641000,-500.0,0.00014999,2]
[423238502,1779972641000,-500.0,0.00014999,2]
[423238503,1779972641000,-500.0,0.00014999,2]
[423238501,1779972641000,-403.43,0.00014999,2]
[423238497,1779972641000,-500.0,0.00014999,2]
[423238498,1779972641000,-500.0,0.00014999,2]
[423238494,1779972641000,-3283.9831731,0.00014999,2]
[423238496,1779972641000,-500.0,0.00014999,2]
[423238493,1779972641000,-191.4554308,0.00014925,2]
[423238492,1779972641000,-1245.12646025,0.000149,2]
[423238491,1779972641000,-220.52495761,0.000149,5]
[423238499,1779972641000,-500.0,0.00014999,2]
[423238517,1779972641000,-500.0,0.00014999,2]
[423238526,1779972641000,-500.0,0.00014999,2]
[423238527,1779972641000,-500.0,0.00014999,2]
[423238542,1779972641000,-500.0,0.00014999,2]
[423238545,1779972641000,-658771.47210344,0.00015,2]
[423238543,1779972641000,-500.0,0.00014999,2]
[423238544,1779972641000,-587.34,0.00014999,2]
[423238541,1779972641000,-500.0,0.00014999,2]
[423238540,1779972641000,-500.0,0.00014999,2]
[423238537,1779972641000,-500.0,0.00014999,2]
[423238535,1779972641000,-1930.0724463,0.00014999,2]
[423238534,1779972641000,-500.0,0.00014999,2]
[423238533,1779972641000,-500.0,0.00014999,2]
[423238532,1779972641000,-500.0,0.00014999,2]
[423238531,1779972641000,-500.0,0.00014999,2]
[423238536,1779972641000,-500.0,0.00014999,2]
[423238538,1779972641000,-500.0,0.00014999,2]
[423238539,1779972641000,-500.0,0.00014999,2]
[423238519,1779972641000,-526.59276587,0.00014999,2]
[423238525,1779972641000,-500.0,0.00014999,2]
[423238520,1779972641000,-500.0,0.00014999,2]
[423238523,1779972641000,-500.0,0.00014999,2]
[423238518,1779972641000,-500.0,0.00014999,2]
[423238524,1779972641000,-500.0,0.00014999,2]
[423238529,1779972641000,-500.0,0.00014999,2]
[423238528,1779972641000,-500.0,0.00014999,2]
[423238530,1779972641000,-500.0,0.00014999,2]
[423238522,1779972641000,-500.0,0.00014999,2]
[423238515,1779972641000,-500.0,0.00014999,2]
[423238567,1779972643000,-18367.88608685,0.00015,2]
[423238566,1779972643000,-12682.59515546,0.00015,2]
[423238565,1779972643000,-10542.96840001,0.00015,2]
[423238564,1779972643000,-10617.03911763,0.00015,2]
[423238576,1779972646000,-511.78299346,0.00015,2]
[423238578,1779972647000,-2688.67,0.00015,2]
[423238577,1779972647000,-7732.80791935,0.00015,2]
[423238585,1779972896000,275.71,0.00027704,120]
[423238586,1779973219000,212.16,0.00028082,120]
[423238587,1779973326000,150.43,6.897e-05,2]
[423238589,1779973428000,-150.43,9.195e-05,2]
[423238590,1779973481000,-150.0,0.00010115,2]
[423238591,1779973534000,-150.43,0.00011494,2]
[423238592,1779973588000,-250.0,0.00011554,2]
[423238594,1779973627000,-40.21253537,0.00011851,2]
[423238593,1779973627000,-150.0,0.00011735,2]
[423238598,1779973630000,-370.97,0.00013513,2]
[423238601,1779973630000,-212.23068675,0.00013697,2]
[423238599,1779973630000,-157.36,0.00013616,2]
[423238600,1779973630000,-152.81,0.00013689,2]
[423238597,1779973630000,-250.0,0.00012644,2]
[423238596,1779973630000,-196.12610297,0.00012644,2]
[423238595,1779973630000,-147.78746463,0.00011851,2]
[423238602,1779973740000,1000.0,0.00028081,120]
[423238603,1779973781000,200.0,0.00028082,120]
[423238627,1779973832000,-401.19,0.00013832,2]
[423238625,1779973832000,-161.34451425,0.00013798,2]
[423238626,1779973832000,-200.0,0.00013812,2]
[423238624,1779973832000,-150.43,0.00013793,2]
[423238616,1779973832000,-1200.0,0.00013697,2]
[423238623,1779973832000,-445.5295,0.00013712,2]
[423238622,1779973832000,-639.13321586,0.00013699,2]
[423238619,1779973832000,-9568.13,0.00013699,2]
[423238621,1779973832000,-500.0,0.00013699,2]
[423238612,1779973832000,-500.0,0.00013697,2]
[423238617,1779973832000,-209.03147293,0.00013698,2]
[423238618,1779973832000,-166.66,0.00013699,2]
[423238620,1779973832000,-500.0,0.00013699,2]
[423238615,1779973832000,-500.0,0.00013697,2]
[423238614,1779973832000,-500.0,0.00013697,2]
[423238611,1779973832000,-500.0,0.00013697,2]
[423238610,1779973832000,-169.4,0.00013517,2]
[423238609,1779973832000,-2000.0,0.00013437,2]
[423238628,1779973832000,-370.97,0.00013851,2]
[423238613,1779973832000,-500.0,0.00013697,2]
[423238631,1779973832000,-166.66,0.00014174,2]
[423238629,1779973832000,-166.66,0.00013857,2]
[423238646,1779973832000,-910.4926,0.000146,2]
[423238630,1779973832000,-166.66,0.00014015,2]
[423238650,1779973832000,-156.81577748,0.00013697,2]
[423238651,1779973832000,-254.85142252,0.000146,2]
[423238648,1779973832000,-48370.97001294,0.000146,2]
[423238649,1779973832000,-314.69518012,0.00013697,2]
[423238644,1779973832000,-157.36354016,0.000146,2]
[423238645,1779973832000,-5000.0,0.000146,2]
[423238643,1779973832000,-535.91229047,0.00014599,2]
[423238652,1779973832000,-287.06431718,0.000146,2]
[423238642,1779973832000,-627.7515571,0.00014599,2]
[423238647,1779973832000,-401345.77616189,0.000146,2]
[423238641,1779973832000,-207.04599869,0.00014599,2]
[423238638,1779973832000,-211.92212557,0.00014538,2]
[423238639,1779973832000,-211.92212551,0.00014578,2]
[423238637,1779973832000,-370.97,0.00014527,2]
[423238635,1779973832000,-165.23,0.0001442,2]
[423238636,1779973832000,-166.66,0.0001449,2]
[423238633,1779973832000,-166.66,0.00014332,2]
[423238634,1779973832000,-275.71,0.00014389,2]
[423238632,1779973832000,-370.97,0.00014189,2]
[423238640,1779973832000,-150.0,0.00014599,2]
[423238688,1779973841000,-242.2493141,0.0001499,2]
[423238693,1779973841000,-500.0,0.00014999,2]
[423238692,1779973841000,-500.0,0.00014999,2]
[423238702,1779973841000,-500.0,0.00014999,2]
[423238686,1779973841000,-1948.67648164,0.000149,2]
[423238685,1779973841000,-211.92212551,0.000149,2]
[423238684,1779973841000,-500.0,0.00014899,2]
[423238682,1779973841000,-500.0,0.00014899,2]
[423238690,1779973841000,-3574.249607,0.00014998,2]
[423238687,1779973841000,-191.4554308,0.00014925,2]
[423238689,1779973841000,-4452.6944475,0.00014998,2]
[423238706,1779973841000,-500.0,0.00014999,2]
[423238691,1779973841000,-7739.6623274,0.00014998,2]
[423238695,1779973841000,-500.0,0.00014999,2]
[423238696,1779973841000,-403.43,0.00014999,2]
[423238697,1779973841000,-500.0,0.00014999,2]
[423238699,1779973841000,-500.0,0.00014999,2]
[423238698,1779973841000,-500.0,0.00014999,2]
[423238700,1779973841000,-500.0,0.00014999,2]
[423238701,1779973841000,-500.0,0.00014999,2]
[423238705,1779973841000,-500.0,0.00014999,2]
[423238683,1779973841000,-500.0,0.00014899,2]
[423238704,1779973841000,-500.0,0.00014999,2]
[423238703,1779973841000,-500.0,0.00014999,2]
[423238694,1779973841000,-500.0,0.00014999,2]
[423238678,1779973841000,-211.92212551,0.0001486,2]
[423238672,1779973841000,-211.92212551,0.00014739,2]
[423238680,1779973841000,-162.47,0.00014867,2]
[423238656,1779973841000,-211.92212551,0.00014618,2]
[423238655,1779973841000,-10422.92498547,0.000146,2]
[423238659,1779973841000,-211.92212551,0.00014699,2]
[423238657,1779973841000,-215.50460005,0.00014658,2]
[423238658,1779973841000,-211.92212551,0.00014659,2]
[423238660,1779973841000,-500.0,0.00014699,2]
[423238663,1779973841000,-500.0,0.00014699,2]
[423238661,1779973841000,-500.0,0.00014699,2]
[423238662,1779973841000,-500.0,0.00014699,2]
[423238668,1779973841000,-500.0,0.00014699,2]
[423238664,1779973841000,-500.0,0.00014699,2]
[423238665,1779973841000,-500.0,0.00014699,2]
[423238666,1779973841000,-500.0,0.00014699,2]
[423238667,1779973841000,-500.0,0.00014699,2]
[423238669,1779973841000,-500.0,0.00014699,2]
[423238671,1779973841000,-500.0,0.00014699,2]
[423238670,1779973841000,-500.0,0.00014699,2]
[423238673,1779973841000,-211.92212551,0.00014779,2]
[423238676,1779973841000,-500.0,0.000148,2]
[423238674,1779973841000,-890.5697,0.000148,2]
[423238679,1779973841000,-370.97,0.00014865,2]
[423238677,1779973841000,-211.92212551,0.0001482,2]
[423238675,1779973841000,-192.46255037,0.000148,2]
[423238681,1779973841000,-500.0,0.00014899,2]
[423238707,1779973841000,-500.0,0.00014999,2]
[423238744,1779973841000,-500.0,0.00014999,2]
[423238708,1779973841000,-500.0,0.00014999,2]
[423238738,1779973841000,-500.0,0.00014999,2]
[423238739,1779973841000,-500.0,0.00014999,2]
[423238737,1779973841000,-500.0,0.00014999,2]
[423238741,1779973841000,-500.0,0.00014999,2]
[423238743,1779973841000,-500.0,0.00014999,2]
[423238742,1779973841000,-500.0,0.00014999,2]
[423238746,1779973841000,-500.0,0.00014999,2]
[423238745,1779973841000,-500.0,0.00014999,2]
[423238748,1779973841000,-500.0,0.00014999,2]
[423238709,1779973841000,-500.0,0.00014999,2]
[423238750,1779973841000,-500.0,0.00014999,2]
[423238736,1779973841000,-500.0,0.00014999,2]
[423238749,1779973841000,-500.0,0.00014999,2]
[423238753,1779973841000,-500.0,0.00014999,2]
[423238756,1779973841000,-500.0,0.00014999,2]
[423238752,1779973841000,-500.0,0.00014999,2]
[423238757,1779973841000,-500.0,0.00014999,2]
[423238754,1779973841000,-500.0,0.00014999,2]
[423238755,1779973841000,-500.0,0.00014999,2]
[423238759,1779973841000,-500.0,0.00014999,2]
[423238758,1779973841000,-500.0,0.00014999,2]
[423238761,1779973841000,-500.0,0.00014999,2]
[423238760,1779973841000,-500.0,0.00014999,2]
[423238762,1779973841000,-500.0,0.00014999,2]
[423238751,1779973841000,-500.0,0.00014999,2]
[423238740,1779973841000,-500.0,0.00014999,2]
[423238747,1779973841000,-500.0,0.00014999,2]
[423238735,1779973841000,-500.0,0.00014999,2]
[423238733,1779973841000,-500.0,0.00014999,2]
[423238714,1779973841000,-500.0,0.00014999,2]
[423238711,1779973841000,-500.0,0.00014999,2]
[423238716,1779973841000,-500.0,0.00014999,2]
[423238715,1779973841000,-500.0,0.00014999,2]
[423238712,1779973841000,-526.59276587,0.00014999,2]
[423238713,1779973841000,-500.0,0.00014999,2]
[423238718,1779973841000,-500.0,0.00014999,2]
[423238717,1779973841000,-500.0,0.00014999,2]
[423238720,1779973841000,-500.0,0.00014999,2]
[423238721,1779973841000,-500.0,0.00014999,2]
[423238722,1779973841000,-500.0,0.00014999,2]
[423238710,1779973841000,-500.0,0.00014999,2]
[423238723,1779973841000,-500.0,0.00014999,2]
[423238719,1779973841000,-500.0,0.00014999,2]
[423238734,1779973841000,-500.0,0.00014999,2]
[423238732,1779973841000,-500.0,0.00014999,2]
[423238731,1779973841000,-500.0,0.00014999,2]
[423238729,1779973841000,-500.0,0.00014999,2]
[423238730,1779973841000,-500.0,0.00014999,2]
[423238724,1779973841000,-500.0,0.00014999,2]
[423238727,1779973841000,-500.0,0.00014999,2]
[423238726,1779973841000,-500.0,0.00014999,2]
[423238725,1779973841000,-500.0,0.00014999,2]
[423238728,1779973841000,-500.0,0.00014999,2]
[423238767,1779973842000,-500.0,0.00014999,2]
[423238763,1779973842000,-500.0,0.00014999,2]
[423238764,1779973842000,-500.0,0.00014999,2]
[423238765,1779973842000,-500.0,0.00014999,2]
[423238769,1779973842000,-500.0,0.00014999,2]
[423238770,1779973842000,-500.0,0.00014999,2]
[423238768,1779973842000,-500.0,0.00014999,2]
[423238766,1779973842000,-500.0,0.00014999,2]
[423238774,1779973842000,-186.0,0.00014999,2]
[423238773,1779973842000,-164.65220892,0.00014999,2]
[423238772,1779973842000,-500.0,0.00014999,2]
[423238775,1779973842000,-500.0,0.00014999,2]
[423238776,1779973842000,-500.0,0.00014999,2]
[423238777,1779973842000,-587.34,0.00014999,2]
[423238779,1779973842000,-968.93060575,0.00015,2]
[423238778,1779973842000,-3987791.8511051,0.00015,2]
[423238780,1779973842000,-1502.09576199,0.00015,2]
[423238771,1779973842000,-500.0,0.00014999,2]
[423238793,1779973846000,-1678.88334819,0.00015,2]
[423238795,1779973847000,-11899.73628102,0.00015,2]
[423238794,1779973847000,-1040.56971036,0.00015,2]
[423238875,1779974155000,2000.0,0.00028082,120]
[423238877,1779974230000,85.41,6.85e-05,2]
[423238878,1779974230000,108.32606862,7.706e-05,2]
[423238879,1779974230000,46.68393138,7.706e-05,2]
[423238876,1779974230000,69.6,6.85e-05,2]
[423238880,1779974268000,-155.01,8.562e-05,2]
[423238881,1779974322000,-1029.76862689,0.000121,30]
[423238883,1779974375000,-155.01,9.418e-05,2]
[423238885,1779974428000,-150.0,9.846e-05,2]
[423238886,1779974482000,-155.01,0.00010274,2]
[423238887,1779974535000,-250.0,0.0001036,2]
[423238888,1779974589000,-2393.94011366,9.04e-05,2]
[423238889,1779974609000,-379.70747073,9.04e-05,2]
[423238890,1779974629000,-4896.84276487,9.04e-05,2]
[423238891,1779974650000,-1664.60090513,9.04e-05,2]
[423238892,1779974715000,678.0,0.00028082,120]
[423238898,1779974747000,-2000.0,0.00013256,2]
[423238894,1779974747000,-155.01,0.00011987,2]
[423238893,1779974747000,-155.01,0.00011131,2]
[423238897,1779974747000,-200.59,0.00013146,2]
[423238895,1779974747000,-311.53507324,0.000125,2]
[423238896,1779974747000,-155.01,0.00012843,2]
[423238899,1779974747000,-213.58,0.00013341,2]
[423238900,1779974747000,-150.0,0.00013488,2]
[423238905,1779974747000,-150.0,0.00013488,2]
[423238902,1779974747000,-150.0,0.00013488,2]
[423238903,1779974747000,-151.20586674,0.00013488,2]
[423238904,1779974747000,-150.0,0.00013488,2]
[423238906,1779974747000,-150.0,0.00013488,2]
[423238907,1779974747000,-150.0,0.00013488,2]
[423238909,1779974747000,-121.37621018,0.00013599,2]
[423238908,1779974747000,-150.0,0.00013543,2]
[423238901,1779974747000,-150.0,0.00013488,2]
[423238911,1779974843000,-164.32,0.00013583,2]
[423238913,1779974843000,-150.0,0.00013624,2]
[423238910,1779974843000,-191.99682764,0.00013032,2]
[423238912,1779974843000,-28.62378982,0.00013599,2]
[423238915,1779974843000,-130.53985275,0.00013675,2]
[423238914,1779974843000,-150.0,0.00013654,2]
[423238916,1779974940000,1000.0,0.00028081,120]
[423238917,1779974988000,370.33,6.595e-05,2]
[423238920,1779975001000,-150.0,0.00012641,2]
[423238921,1779975008000,370.33,6.943e-05,2]
[423238925,1779975009000,370.33,8.331e-05,2]
[423238924,1779975009000,370.33,7.984e-05,2]
[423238923,1779975009000,370.33,7.637e-05,2]
[423238922,1779975009000,370.33,7.29e-05,2]
[423238971,1779975034000,-150.0,0.00013821,2]
[423238967,1779975034000,-181.4,0.00013774,2]
[423238962,1779975034000,-191.4554308,0.00013701,2]
[423238965,1779975034000,-150.0,0.00013765,2]
[423238973,1779975034000,-150.0,0.00013862,2]
[423238966,1779975034000,-11290.08177461,0.0001377,2]
[423238964,1779975034000,-150.0,0.0001376,2]
[423238968,1779975034000,-150.0,0.00013787,2]
[423238972,1779975034000,-166.66,0.00013836,2]
[423238963,1779975034000,-150.0,0.0001371,2]
[423238969,1779975034000,-150.0,0.00013787,2]
[423238970,1779975034000,-154.12,0.00013818,2]
[423238976,1779975034000,-150.0,0.00013896,2]
[423238975,1779975034000,-150.0,0.00013876,2]
[423238977,1779975034000,-300.0,0.000139,2]
[423238978,1779975034000,-413.59972866,0.00013902,2]
[423238979,1779975034000,-500.0,0.00013904,2]
[423238984,1779975034000,-300.0,0.00013905,2]
[423238986,1779975034000,-150.0,0.00013932,2]
[423238983,1779975034000,-300.0,0.00013905,2]
[423238987,1779975034000,-200.0,0.00013943,2]
[423238985,1779975034000,-257.50891594,0.00013905,2]
[423238980,1779975034000,-500.0,0.00013904,2]
[423238953,1779975034000,-6867.5310897,0.00013063,2]
[423238974,1779975034000,-150.0,0.00013862,2]
[423238957,1779975034000,-200.0,0.00013699,2]
[423238939,1779975034000,-370.33,0.00010761,2]
[423238956,1779975034000,-163.53,0.00013675,2]
[423238935,1779975034000,-370.33,9.372e-05,2]
[423238934,1779975034000,-370.33,9.025e-05,2]
[423238936,1779975034000,-370.33,9.72e-05,2]
[423238937,1779975034000,-370.33,0.00010067,2]
[423238933,1779975034000,-370.33,8.678e-05,2]
[423238988,1779975034000,-166.66,0.00013973,2]
[423238949,1779975034000,-469.21557471,0.00013032,2]
[423238938,1779975034000,-370.33,0.00010414,2]
[423238940,1779975034000,-370.33,0.00011108,2]
[423238942,1779975034000,-370.33,0.00011802,2]
[423238941,1779975034000,-370.33,0.00011455,2]
[423238943,1779975034000,-152.0,0.00012107,30]
[423238944,1779975034000,-370.33,0.00012149,2]
[423238947,1779975034000,-500.0,0.00013031,2]
[423238945,1779975034000,-370.33,0.00012497,2]
[423238946,1779975034000,-370.33,0.00012844,2]
[423238948,1779975034000,-500.0,0.00013031,2]
[423238950,1779975034000,-300.0,0.00013062,2]
[423238952,1779975034000,-5469.07755937,0.00013063,2]
[423238951,1779975034000,-1883.95871783,0.00013063,2]
[423238958,1779975034000,-166.66,0.00013699,2]
[423238959,1779975034000,-500.0,0.00013699,2]
[423238960,1779975034000,-595.75939729,0.00013699,2]
[423238961,1779975034000,-155.01,0.00013699,2]
[423238954,1779975034000,-370.33,0.00013191,2]
[423238955,1779975034000,-19.46014725,0.00013675,2]
[423238990,1779975034000,-250.0,0.00014,2]
[423238982,1779975034000,-300.0,0.00013905,2]
[423238991,1779975034000,-265.72520712,0.00014,30]
[423239016,1779975034000,-150.0,0.00014237,2]
[423239019,1779975034000,-150.0,0.00014265,2]
[423239021,1779975034000,-26.69658209,0.000143,5]
[423239024,1779975034000,-150.0,0.0001432,2]
[423239035,1779975034000,-48.21028094,0.00014387,2]
[423239025,1779975034000,-420.0,0.00014324,2]
[423239028,1779975034000,-300.0,0.00014335,2]
[423239026,1779975034000,-302.21282063,0.00014335,2]
[423239034,1779975034000,-166.66,0.00014384,2]
[423239032,1779975034000,-253.59971906,0.00014357,2]
[423239030,1779975034000,-250.0,0.00014335,2]
[423239031,1779975034000,-96.40028094,0.00014357,2]
[423239029,1779975034000,-296.27368958,0.00014335,2]
[423239027,1779975034000,-300.0,0.00014335,2]
[423239033,1779975034000,-150.0,0.00014376,2]
[423239038,1779975034000,-271.0759,0.000144,2]
[423239036,1779975034000,-101.78971906,0.00014387,2]
[423239042,1779975034000,-150.0,0.00014424,2]
[423239045,1779975034000,-155.64080754,0.00014442,2]
[423239039,1779975034000,-470.35144812,0.000144,5]
[423239041,1779975034000,-1300.0,0.000144,5]
[423239044,1779975034000,-150.0,0.00014441,2]
[423239037,1779975034000,-150.0,0.00014387,2]
[423238989,1779975034000,-150.0,0.00013987,2]
[423239040,1779975034000,-3229.64855188,0.000144,5]
[423239017,1779975034000,-150.0,0.00014237,2]
[423239018,1779975034000,-166.66,0.00014247,2]
[423239043,1779975034000,-150.0,0.00014431,2]
[423239015,1779975034000,-150.0,0.00014237,2]
[423239020,1779975034000,-2673.30341791,0.000143,5]
[423238998,1779975034000,-900.0,0.000141,5]
[423238997,1779975034000,-150.0,0.00014098,2]
[423238995,1779975034000,-150.0,0.00014087,2]
[423238999,1779975034000,-300.0,0.000141,5]
[423238993,1779975034000,-150.0,0.00014043,2]
[423238996,1779975034000,-150.0,0.00014087,2]
[423238994,1779975034000,-150.0,0.0001405,2]
[423239000,1779975034000,-166.66,0.0001411,2]
[423239001,1779975034000,-150.0,0.00014154,2]
[423239007,1779975034000,-500.0,0.00014178,2]
[423239011,1779975034000,-600.0,0.000142,5]
[423238992,1779975034000,-150.0,0.00014033,2]
[423239006,1779975034000,-500.0,0.00014178,2]
[423239013,1779975034000,-283.31440298,0.00014232,2]
[423239023,1779975034000,-150.0,0.00014305,2]
[423239022,1779975034000,-900.0,0.000143,5]
[423239009,1779975034000,-500.0,0.00014178,2]
[423239012,1779975034000,-150.0,0.00014209,2]
[423239014,1779975034000,-216.68559702,0.00014232,2]
[423239003,1779975034000,-630.67715159,0.00014177,2]
[423239008,1779975034000,-500.0,0.00014178,2]
[423239005,1779975034000,-205.13860333,0.00014177,2]
[423239004,1779975034000,-500.0,0.00014177,2]
[423239010,1779975034000,-1800.0,0.000142,5]
[423239002,1779975034000,-150.0,0.00014169,2]
[423239085,1779975035000,-500.0,0.00014599,2]
[423239081,1779975035000,-1806.06903313,0.00014598,2]
[423239077,1779975035000,-150.0,0.00014578,2]
[423239080,1779975035000,-150.0,0.00014598,2]
[423239073,1779975035000,-25000.0,0.00014566,3]
[423239086,1779975035000,-500.0,0.00014599,2]
[423239078,1779975035000,-25000.0,0.00014583,3]
[423239076,1779975035000,-25000.0,0.00014574,3]
[423239075,1779975035000,-500.0,0.00014574,2]
[423239079,1779975035000,-25000.0,0.00014592,3]
[423239083,1779975035000,-500.0,0.00014599,2]
[423239088,1779975035000,-500.0,0.00014599,2]
[423239084,1779975035000,-500.0,0.00014599,2]
[423239087,1779975035000,-500.0,0.00014599,2]
[423239089,1779975035000,-500.0,0.00014599,2]
[423239092,1779975035000,-500.0,0.00014599,2]
[423239090,1779975035000,-500.0,0.00014599,2]
[423239091,1779975035000,-500.0,0.00014599,2]
[423239098,1779975035000,-500.0,0.00014599,2]
[423239094,1779975035000,-500.0,0.00014599,2]
[423239093,1779975035000,-500.0,0.00014599,2]
[423239074,1779975035000,-155.64080753,0.00014573,2]
[423239095,1779975035000,-500.0,0.00014599,2]
[423239082,1779975035000,-2795.31766973,0.00014598,2]
[423239066,1779975035000,-25000.0,0.00014539,3]
[423239058,1779975035000,-1886.0,0.000145,2]
[423239071,1779975035000,-10861.4,0.00014555,2]
[423239097,1779975035000,-500.0,0.00014599,2]
[423239047,1779975035000,-150.0,0.00014487,2]
[423239046,1779975035000,-220.270076,0.00014475,2]
[423239049,1779975035000,-1590.57,0.00014497,2]
[423239059,1779975035000,-4600.0,0.000145,5]
[423239048,1779975035000,-665.35,0.00014497,2]
[423239057,1779975035000,-192.46255037,0.000145,2]
[423239051,1779975035000,-5000.0,0.000145,2]
[423239050,1779975035000,-3062.01658014,0.00014498,2]
[423239053,1779975035000,-1079.3267,0.000145,2]
[423239054,1779975035000,-11343.1518,0.000145,2]
[423239061,1779975035000,-500.0,0.00014506,2]
[423239052,1779975035000,-3883.9391,0.000145,2]
[423239055,1779975035000,-2500.0,0.000145,2]
[423239060,1779975035000,-1600.0,0.000145,5]
[423239063,1779975035000,-2795.31766973,0.00014512,2]
[423239062,1779975035000,-155.64080753,0.00014507,2]
[423239067,1779975035000,-150.0,0.00014542,2]
[423239072,1779975035000,-25000.0,0.00014557,3]
[423239064,1779975035000,-25000.0,0.00014522,3]
[423239068,1779975035000,-25000.0,0.00014548,3]
[423239069,1779975035000,-2795.31766973,0.00014555,2]
[423239065,1779975035000,-25000.0,0.0001453,3]
[423239070,1779975035000,-3062.01658014,0.00014555,2]
[423239056,1779975035000,-4942.3311,0.000145,2]
[423239096,1779975035000,-500.0,0.00014599,2]
[423239111,1779975035000,-500.0,0.00014599,2]
[423239103,1779975035000,-500.0,0.00014599,2]
[423239131,1779975035000,-500.0,0.00014599,2]
[423239124,1779975035000,-500.0,0.00014599,2]
[423239130,1779975035000,-500.0,0.00014599,2]
[423239129,1779975035000,-500.0,0.00014599,2]
[423239134,1779975035000,-377.20412361,0.00014599,2]
[423239141,1779975035000,-500.0,0.00014599,2]